[Event "*** Titled Tuesday Blitz"]
[Site "Chess.com"]
[Date "2019.03.05"]
[Round "5"]
[White "marianokar"]
[Black "ManuDavid2910"]
[Result "0-1"]
[WhiteElo "2431"]
[BlackElo "2741"]
[TimeControl "180+2"]
[EndTime "14:12:45 PST"]
[Termination "ManuDavid2910 won on time"]

1. e4 {[%clk 0:03:01.9]} 1... c5 {[%clk 0:03:00.1]} 2. Nf3 {[%clk 0:03:01.4]}
2... Nc6 {[%clk 0:03:01.4]} 3. Bb5 {[%clk 0:03:01.1]} 3... e6 {[%clk 0:03:00.1]}
4. c3 {[%clk 0:02:52.5]} 4... Nge7 {[%clk 0:03:00.8]} 5. O-O {[%clk 0:02:53.5]}
5... g6 {[%clk 0:02:59.4]} 6. d4 {[%clk 0:02:36.3]} 6... cxd4 {[%clk 0:03:01.3]}
7. Bg5 {[%clk 0:02:35.2]} 7... dxc3 {[%clk 0:02:45.4]} 8. Nxc3 {[%clk
0:02:33.2]} 8... Bg7 {[%clk 0:02:44.6]} 9. Bxc6 {[%clk 0:02:32.4]} 9... bxc6
{[%clk 0:02:46.5]} 10. e5 {[%clk 0:02:23]} 10... O-O {[%clk 0:02:46.3]} 11. Qd6
{[%clk 0:02:01.5]} 11... f6 {[%clk 0:02:42.1]} 12. exf6 {[%clk 0:01:56.4]} 12...
Bxf6 {[%clk 0:02:44]} 13. Bxf6 {[%clk 0:01:43.9]} 13... Rxf6 {[%clk 0:02:45.9]}
14. Ne4 {[%clk 0:01:45]} 14... Rf8 {[%clk 0:02:36.4]} 15. Rfd1 {[%clk
0:01:36.7]} 15... Nf5 {[%clk 0:02:36.3]} 16. Qe5 {[%clk 0:01:34.5]} 16... d5
{[%clk 0:02:34]} 17. Nc5 {[%clk 0:01:25.1]} 17... Qe7 {[%clk 0:02:31.8]} 18.
Rac1 {[%clk 0:01:22.2]} 18... a5 {[%clk 0:02:27.4]} 19. h3 {[%clk 0:01:07.1]}
19... Nd6 {[%clk 0:02:24.2]} 20. Nd4 {[%clk 0:01:04.2]} 20... Nc4 {[%clk
0:02:17.5]} 21. Rxc4 {[%clk 0:01:03.3]} 21... dxc4 {[%clk 0:02:19.3]} 22. Nxc6
{[%clk 0:01:02.6]} 22... Qg7 {[%clk 0:02:17.2]} 23. Qd6 {[%clk 0:00:40.5]} 23...
Qxb2 {[%clk 0:02:14.4]} 24. Rf1 {[%clk 0:00:35.7]} 24... Qf6 {[%clk 0:02:11.5]}
25. Ne4 {[%clk 0:00:32.2]} 25... Qf4 {[%clk 0:02:00.1]} 26. Ne7+ {[%clk
0:00:28.9]} 26... Kg7 {[%clk 0:02:00.6]} 27. Qd4+ {[%clk 0:00:29.6]} 27... e5
{[%clk 0:02:01.1]} 28. Qd5 {[%clk 0:00:27.8]} 28... Be6 {[%clk 0:01:51.5]} 29.
Qxe6 {[%clk 0:00:24.4]} 29... Qxe4 {[%clk 0:01:52]} 30. Nd5 {[%clk 0:00:21.3]}
30... Rae8 {[%clk 0:01:46]} 31. Qd7+ {[%clk 0:00:18]} 31... Kh8 {[%clk
0:01:46.8]} 32. Nf6 {[%clk 0:00:17.6]} 32... Rxf6 {[%clk 0:01:46.4]} 33. Qxe8+
{[%clk 0:00:18.7]} 33... Kg7 {[%clk 0:01:47.4]} 34. Rd1 {[%clk 0:00:17.2]} 34...
Qf4 {[%clk 0:01:36.8]} 35. Rd7+ {[%clk 0:00:16.4]} 35... Kh6 {[%clk 0:01:37.7]}
36. f3 {[%clk 0:00:17.6]} 36... e4 {[%clk 0:01:23.8]} 37. Qg8 {[%clk 0:00:16.5]}
37... exf3 {[%clk 0:00:40.5]} 38. Qxh7+ {[%clk 0:00:15.4]} 38... Kg5 {[%clk
0:00:41.5]} 39. h4+ {[%clk 0:00:12]} 39... Kg4 {[%clk 0:00:33.5]} 40. Rd1 {[%clk
0:00:06.7]} 40... fxg2 {[%clk 0:00:30]} 41. Qd7+ {[%clk 0:00:06.3]} 41... Kg3
{[%clk 0:00:28.3]} 0-1

[Event "*** Titled Tuesday Blitz"]
[Site "Chess.com"]
[Date "2019.03.05"]
[Round "5"]
[White "gmjoey1"]
[Black "Kampkatten"]
[Result "1-0"]
[WhiteElo "2728"]
[BlackElo "2770"]
[TimeControl "180+2"]
[EndTime "14:12:53 PST"]
[Termination "gmjoey1 won by resignation"]

1. e4 {[%clk 0:03:01.9]} 1... c5 {[%clk 0:03:01.1]} 2. Nf3 {[%clk 0:03:02.1]}
2... d6 {[%clk 0:03:02.6]} 3. c3 {[%clk 0:03:02.8]} 3... Nf6 {[%clk 0:03:03.8]}
4. Be2 {[%clk 0:03:03.7]} 4... g6 {[%clk 0:03:05.3]} 5. O-O {[%clk 0:03:04.2]}
5... Bg7 {[%clk 0:03:06.9]} 6. Re1 {[%clk 0:03:04.8]} 6... O-O {[%clk 0:03:07]}
7. Bf1 {[%clk 0:03:05.5]} 7... Nc6 {[%clk 0:03:08.3]} 8. d4 {[%clk 0:03:06.2]}
8... cxd4 {[%clk 0:03:04.8]} 9. cxd4 {[%clk 0:03:08.1]} 9... Bg4 {[%clk
0:03:05.9]} 10. d5 {[%clk 0:03:09.4]} 10... Ne5 {[%clk 0:03:04]} 11. Nbd2 {[%clk
0:03:04.9]} 11... Nfd7 {[%clk 0:03:02.5]} 12. h3 {[%clk 0:03:04.8]} 12... Nxf3+
{[%clk 0:02:58.4]} 13. Nxf3 {[%clk 0:03:06.7]} 13... Bxf3 {[%clk 0:02:58.1]} 14.
Qxf3 {[%clk 0:03:07.3]} 14... Qb6 {[%clk 0:02:57.5]} 15. Rb1 {[%clk 0:03:03.4]}
15... Rac8 {[%clk 0:02:55.5]} 16. Be3 {[%clk 0:02:58.6]} 16... Qa5 {[%clk
0:02:52.9]} 17. a3 {[%clk 0:02:57.4]} 17... Rc2 {[%clk 0:02:50]} 18. Bg5 {[%clk
0:02:44]} 18... Re8 {[%clk 0:02:41.6]} 19. b4 {[%clk 0:02:36.4]} 19... Qa4
{[%clk 0:02:33.7]} 20. Qd1 {[%clk 0:02:35.9]} 20... Nb6 {[%clk 0:02:16.5]} 21.
Bb5 {[%clk 0:02:29.2]} 21... Qxb5 {[%clk 0:02:09.9]} 22. Qxc2 {[%clk 0:02:30]}
22... Rc8 {[%clk 0:02:05.1]} 23. Qe2 {[%clk 0:02:29.9]} 23... Qxe2 {[%clk
0:02:01.2]} 24. Rxe2 {[%clk 0:02:31.8]} 24... Kf8 {[%clk 0:02:01]} 25. Be3
{[%clk 0:02:28.9]} 25... Na4 {[%clk 0:01:53.6]} 26. Rc1 {[%clk 0:02:24.9]} 26...
Rxc1+ {[%clk 0:01:43.8]} 27. Bxc1 {[%clk 0:02:26.8]} 27... Ke8 {[%clk
0:01:43.5]} 28. Rc2 {[%clk 0:02:27]} 28... Kd7 {[%clk 0:01:44.5]} 29. Be3 {[%clk
0:02:27.5]} 29... a6 {[%clk 0:01:42.1]} 30. Kf1 {[%clk 0:02:28]} 30... Nc3
{[%clk 0:01:40.4]} 31. f3 {[%clk 0:02:26.4]} 31... f5 {[%clk 0:01:41.3]} 32. Bd2
{[%clk 0:02:23.5]} 32... Nb5 {[%clk 0:01:37.7]} 33. Bc1 {[%clk 0:02:21.6]} 33...
Nd4 {[%clk 0:01:27.3]} 34. Rf2 {[%clk 0:02:20]} 34... Nb3 {[%clk 0:01:22.7]} 35.
Bb2 {[%clk 0:02:16]} 35... Bh6 {[%clk 0:01:23.8]} 36. exf5 {[%clk 0:02:10.3]}
36... gxf5 {[%clk 0:01:22.1]} 37. Rc2 {[%clk 0:02:11.1]} 37... b5 {[%clk
0:01:05.1]} 38. Ke2 {[%clk 0:02:11]} 38... Bf4 {[%clk 0:01:01.3]} 39. g4 {[%clk
0:02:10]} 39... fxg4 {[%clk 0:00:59.2]} 40. fxg4 {[%clk 0:02:11.1]} 40... Bg5
{[%clk 0:00:57.7]} 41. Kd3 {[%clk 0:02:04.1]} 41... a5 {[%clk 0:00:57.7]} 42.
Bc3 {[%clk 0:02:00.8]} 42... a4 {[%clk 0:00:55]} 43. Ke4 {[%clk 0:02:00.9]}
43... Bc1 {[%clk 0:00:52.9]} 44. Bb2 {[%clk 0:01:59.2]} 44... Nd2+ {[%clk
0:00:52]} 45. Kf5 {[%clk 0:01:57.2]} 45... Bxb2 {[%clk 0:00:53.2]} 46. Rxb2
{[%clk 0:01:57.6]} 46... Nc4 {[%clk 0:00:54.7]} 47. Ra2 {[%clk 0:01:58.5]} 47...
Ke8 {[%clk 0:00:46.4]} 48. Ke6 {[%clk 0:01:53.5]} 48... Ne5 {[%clk 0:00:38.4]}
49. Rc2 {[%clk 0:01:50.8]} 49... Nc4 {[%clk 0:00:37.5]} 50. g5 {[%clk
0:01:51.5]} 50... Kf8 {[%clk 0:00:36.6]} 51. Rc3 {[%clk 0:01:52.3]} 51... Kg7
{[%clk 0:00:32]} 52. h4 {[%clk 0:01:49.3]} 52... Kg6 {[%clk 0:00:32.4]} 53. Kxe7
{[%clk 0:01:50]} 53... Kh5 {[%clk 0:00:33.7]} 54. Kf6 {[%clk 0:01:43.2]} 54...
Kxh4 {[%clk 0:00:33.5]} 55. Rd3 {[%clk 0:01:44.6]} 55... Kg4 {[%clk 0:00:32.5]}
56. Rc3 {[%clk 0:01:37.3]} 56... Kf4 {[%clk 0:00:31.8]} 57. Rh3 {[%clk
0:01:36.6]} 57... Ne3 {[%clk 0:00:26.1]} 58. Rxh7 {[%clk 0:01:32.3]} 58... Nxd5+
{[%clk 0:00:26.8]} 59. Ke6 {[%clk 0:01:33.6]} 59... Ke4 {[%clk 0:00:15.4]} 60.
Rh4+ {[%clk 0:01:32.1]} 60... Nf4+ {[%clk 0:00:16.7]} 61. Kxd6 {[%clk
0:01:32.8]} 61... Kf5 {[%clk 0:00:17.8]} 62. Rxf4+ {[%clk 0:01:33.6]} 62... Kxf4
{[%clk 0:00:19.7]} 63. g6 {[%clk 0:01:34.8]} 1-0

[Event "*** Titled Tuesday Blitz"]
[Site "Chess.com"]
[Date "2019.03.05"]
[Round "5"]
[White "DawidCzerw"]
[Black "almaguerjm"]
[Result "1-0"]
[WhiteElo "2259"]
[BlackElo "2303"]
[TimeControl "180+2"]
[EndTime "14:12:53 PST"]
[Termination "DawidCzerw won by resignation"]

1. d4 {[%clk 0:03:01.9]} 1... Nf6 {[%clk 0:03:00.3]} 2. c4 {[%clk 0:03:02.9]}
2... c5 {[%clk 0:03:01.5]} 3. d5 {[%clk 0:03:04]} 3... e6 {[%clk 0:03:02.5]} 4.
Nc3 {[%clk 0:03:01.8]} 4... exd5 {[%clk 0:03:03.7]} 5. cxd5 {[%clk 0:03:03.7]}
5... d6 {[%clk 0:03:05.3]} 6. Nf3 {[%clk 0:03:04.3]} 6... g6 {[%clk 0:03:07]} 7.
Bf4 {[%clk 0:03:05.2]} 7... Bg7 {[%clk 0:03:08.6]} 8. Qa4+ {[%clk 0:03:06]} 8...
Bd7 {[%clk 0:03:08.5]} 9. Qb3 {[%clk 0:03:07.4]} 9... Qc7 {[%clk 0:03:10.1]} 10.
e4 {[%clk 0:03:04.9]} 10... O-O {[%clk 0:03:10.8]} 11. Nd2 {[%clk 0:03:03.1]}
11... Nh5 {[%clk 0:03:08.3]} 12. Be3 {[%clk 0:03:04.3]} 12... f5 {[%clk
0:03:06.2]} 13. exf5 {[%clk 0:02:51.3]} 13... gxf5 {[%clk 0:03:06.7]} 14. Be2
{[%clk 0:02:51.7]} 14... f4 {[%clk 0:03:07.8]} 15. Bxh5 {[%clk 0:02:48.9]} 15...
fxe3 {[%clk 0:03:08.9]} 16. fxe3 {[%clk 0:02:50.8]} 16... Bh6 {[%clk 0:02:52.9]}
17. Nce4 {[%clk 0:02:43.7]} 17... b5 {[%clk 0:02:48.5]} 18. Qc3 {[%clk
0:02:23.3]} 18... Bg7 {[%clk 0:02:38.3]} 19. Qc2 {[%clk 0:02:18]} 19... Na6
{[%clk 0:02:33.2]} 20. a3 {[%clk 0:02:17.9]} 20... Qd8 {[%clk 0:02:23.4]} 21.
Nf3 {[%clk 0:01:58.3]} 21... Bf5 {[%clk 0:02:02.7]} 22. g4 {[%clk 0:01:50.4]}
22... Bxb2 {[%clk 0:01:25.3]} 23. gxf5 {[%clk 0:01:17.6]} 23... Bxa1 {[%clk
0:01:21.5]} 24. Rg1+ {[%clk 0:01:18.6]} 24... Kh8 {[%clk 0:01:21.5]} 25. Nfg5
{[%clk 0:01:08.4]} 25... Be5 {[%clk 0:00:44.2]} 26. Qg2 {[%clk 0:00:51.3]} 26...
Qa5+ {[%clk 0:00:39.5]} 27. Kf2 {[%clk 0:00:46.5]} 27... Rxf5+ {[%clk
0:00:39.1]} 28. Bf3 {[%clk 0:00:37.4]} 28... Raf8 {[%clk 0:00:33.4]} 29. Qh3
{[%clk 0:00:32.2]} 29... Qc7 {[%clk 0:00:34]} 30. Rg4 {[%clk 0:00:17.9]} 30...
Qe7 {[%clk 0:00:16.2]} 31. Rh4 {[%clk 0:00:16.5]} 31... Rxg5 {[%clk 0:00:14.8]}
32. Nxg5 {[%clk 0:00:17.2]} 32... Qxg5 {[%clk 0:00:16.3]} 33. Rxh7+ {[%clk
0:00:17.3]} 33... Kg8 {[%clk 0:00:17.9]} 34. Rh5 {[%clk 0:00:16.2]} 34... Qg6
{[%clk 0:00:12.7]} 35. e4 {[%clk 0:00:06.3]} 35... Nc7 {[%clk 0:00:12.8]} 36.
Rh4 {[%clk 0:00:07]} 36... Bd4+ {[%clk 0:00:14]} 37. Ke2 {[%clk 0:00:08]} 37...
Kf7 {[%clk 0:00:12.5]} 38. Bh5 {[%clk 0:00:08.1]} 38... Kg7 {[%clk 0:00:11.6]}
39. Bxg6 {[%clk 0:00:08.8]} 39... Rf2+ {[%clk 0:00:13.2]} 40. Ke1 {[%clk
0:00:09.1]} 40... Kxg6 {[%clk 0:00:13.7]} 41. Rg4+ {[%clk 0:00:10.5]} 41... Kf6
{[%clk 0:00:14.6]} 42. Qh6+ {[%clk 0:00:12]} 42... Ke5 {[%clk 0:00:15.9]} 43.
Qg5+ {[%clk 0:00:11.8]} 1-0

[Event "*** Titled Tuesday Blitz"]
[Site "Chess.com"]
[Date "2019.03.05"]
[Round "5"]
[White "Dyadya81"]
[Black "UCantHandleDenker"]
[Result "0-1"]
[WhiteElo "2756"]
[BlackElo "2544"]
[TimeControl "180+2"]
[EndTime "14:13:00 PST"]
[Termination "UCantHandleDenker won by resignation"]

1. e4 {[%clk 0:03:01.1]} 1... c5 {[%clk 0:03:00]} 2. b4 {[%clk 0:03:01.9]} 2...
cxb4 {[%clk 0:02:58.8]} 3. Bb2 {[%clk 0:03:03.2]} 3... d6 {[%clk 0:02:51.7]} 4.
Nf3 {[%clk 0:03:01.5]} 4... Nd7 {[%clk 0:02:51.6]} 5. d4 {[%clk 0:03:02.1]} 5...
g6 {[%clk 0:02:40.5]} 6. e5 {[%clk 0:02:48.7]} 6... Bg7 {[%clk 0:02:38.1]} 7. a3
{[%clk 0:02:27.3]} 7... Qc7 {[%clk 0:02:00.3]} 8. Bb5 {[%clk 0:02:10.9]} 8...
bxa3 {[%clk 0:01:25.1]} 9. Nxa3 {[%clk 0:02:08.7]} 9... Nh6 {[%clk 0:01:17.2]}
10. O-O {[%clk 0:02:05.9]} 10... O-O {[%clk 0:01:14.4]} 11. Nc4 {[%clk
0:01:57.9]} 11... Nb6 {[%clk 0:01:04.7]} 12. Ne3 {[%clk 0:01:52.3]} 12... Ng4
{[%clk 0:01:02.3]} 13. h3 {[%clk 0:01:35.9]} 13... Nxe3 {[%clk 0:01:02.3]} 14.
fxe3 {[%clk 0:01:37.8]} 14... Bf5 {[%clk 0:00:57.3]} 15. exd6 {[%clk 0:01:29.1]}
15... exd6 {[%clk 0:00:56.9]} 16. Bd3 {[%clk 0:01:28.1]} 16... Bxd3 {[%clk
0:00:53.5]} 17. cxd3 {[%clk 0:01:30]} 17... Nd5 {[%clk 0:00:49.3]} 18. Re1
{[%clk 0:01:18]} 18... Rfe8 {[%clk 0:00:43]} 19. e4 {[%clk 0:01:18.8]} 19... Nf4
{[%clk 0:00:39]} 20. Bc1 {[%clk 0:00:50.4]} 20... Ne6 {[%clk 0:00:37.9]} 21. Be3
{[%clk 0:00:51.5]} 21... a5 {[%clk 0:00:33.1]} 22. d5 {[%clk 0:00:52.7]} 22...
Nc5 {[%clk 0:00:18.8]} 23. Nd4 {[%clk 0:00:52.7]} 23... Qd7 {[%clk 0:00:18.6]}
24. Rb1 {[%clk 0:00:51.2]} 24... a4 {[%clk 0:00:18.7]} 25. Nb5 {[%clk
0:00:37.4]} 25... a3 {[%clk 0:00:17.6]} 26. Nd4 {[%clk 0:00:16.6]} 26... a2
{[%clk 0:00:18]} 27. Ra1 {[%clk 0:00:18.2]} 27... Qa4 {[%clk 0:00:17.2]} 28.
Qxa4 {[%clk 0:00:05.6]} 28... Rxa4 {[%clk 0:00:19.1]} 29. Nb5 {[%clk 0:00:07]}
29... Nxd3 {[%clk 0:00:17]} 30. Nxd6 {[%clk 0:00:02.2]} 30... Nxe1 {[%clk
0:00:17.1]} 31. Rxa2 {[%clk 0:00:02.9]} 31... Rxa2 {[%clk 0:00:17.3]} 32. Nxe8
{[%clk 0:00:04.8]} 32... Nxg2 {[%clk 0:00:17.1]} 33. Bc5 {[%clk 0:00:04.3]}
33... Nf4 {[%clk 0:00:16.2]} 34. d6 {[%clk 0:00:05.9]} 34... Ne6 {[%clk
0:00:14.9]} 35. d7 {[%clk 0:00:06.7]} 35... Rd2 {[%clk 0:00:13.4]} 36. Bd6
{[%clk 0:00:08.1]} 36... Bf8 {[%clk 0:00:12.7]} 37. e5 {[%clk 0:00:08.1]} 37...
Bxd6 {[%clk 0:00:11.6]} 38. Nxd6 {[%clk 0:00:09.9]} 38... Nd8 {[%clk 0:00:11.2]}
39. h4 {[%clk 0:00:10.3]} 39... Kf8 {[%clk 0:00:11.9]} 40. h5 {[%clk 0:00:10.8]}
40... gxh5 {[%clk 0:00:12]} 41. Kf1 {[%clk 0:00:11.7]} 41... Ke7 {[%clk
0:00:13.1]} 42. Nf5+ {[%clk 0:00:12.8]} 42... Kxd7 {[%clk 0:00:14.2]} 43. Ke1
{[%clk 0:00:14.7]} 43... Rd5 {[%clk 0:00:14.6]} 0-1

[Event "*** Titled Tuesday Blitz"]
[Site "Chess.com"]
[Date "2019.03.05"]
[Round "5"]
[White "Caterpiller35"]
[Black "AdrianaNikolova"]
[Result "1-0"]
[WhiteElo "2342"]
[BlackElo "2433"]
[TimeControl "180+2"]
[EndTime "14:13:00 PST"]
[Termination "Caterpiller35 won on time"]

1. d4 {[%clk 0:03:01.9]} 1... Nf6 {[%clk 0:03:00.2]} 2. Bg5 {[%clk 0:02:47.1]}
2... Ne4 {[%clk 0:02:50.3]} 3. Bf4 {[%clk 0:02:48]} 3... c5 {[%clk 0:02:45.8]}
4. f3 {[%clk 0:02:48.9]} 4... Qa5+ {[%clk 0:02:44.5]} 5. c3 {[%clk 0:02:50.1]}
5... Nf6 {[%clk 0:02:44]} 6. Nd2 {[%clk 0:02:51.6]} 6... cxd4 {[%clk 0:02:43.1]}
7. Nb3 {[%clk 0:02:53.1]} 7... Qf5 {[%clk 0:02:43.5]} 8. Bxb8 {[%clk 0:02:53.7]}
8... Rxb8 {[%clk 0:02:44.8]} 9. Qxd4 {[%clk 0:02:55.3]} 9... d5 {[%clk
0:02:38.2]} 10. Qxa7 {[%clk 0:02:52.5]} 10... Nd7 {[%clk 0:02:30.6]} 11. O-O-O
{[%clk 0:02:49.5]} 11... e6 {[%clk 0:02:27.5]} 12. e4 {[%clk 0:02:44.2]} 12...
Qf4+ {[%clk 0:02:24.6]} 13. Kb1 {[%clk 0:02:45]} 13... dxe4 {[%clk 0:02:11]} 14.
Bb5 {[%clk 0:02:18.6]} 14... Bd6 {[%clk 0:01:49.7]} 15. Ne2 {[%clk 0:02:15.8]}
15... Qe5 {[%clk 0:01:48]} 16. Bxd7+ {[%clk 0:02:06.3]} 16... Bxd7 {[%clk
0:01:48.1]} 17. f4 {[%clk 0:02:07.6]} 17... Qb5 {[%clk 0:01:30.8]} 18. Rxd6
{[%clk 0:01:59.1]} 18... O-O {[%clk 0:01:32.2]} 19. Qd4 {[%clk 0:01:36.8]} 19...
Bc6 {[%clk 0:01:14.2]} 20. Ng3 {[%clk 0:01:25.1]} 20... Ra8 {[%clk 0:01:10.2]}
21. Rd1 {[%clk 0:01:07.2]} 21... Bd5 {[%clk 0:00:44.8]} 22. Rxd5 {[%clk
0:00:50.8]} 22... exd5 {[%clk 0:00:42.3]} 23. Nf5 {[%clk 0:00:43.2]} 23... f6
{[%clk 0:00:35.7]} 24. Qxd5+ {[%clk 0:00:40.1]} 24... Qxd5 {[%clk 0:00:36.9]}
25. Rxd5 {[%clk 0:00:42]} 25... Rad8 {[%clk 0:00:24.8]} 26. Rxd8 {[%clk
0:00:35.5]} 26... Rxd8 {[%clk 0:00:26.7]} 27. Nbd4 {[%clk 0:00:36.8]} 27... g6
{[%clk 0:00:12.2]} 28. Ne3 {[%clk 0:00:37.6]} 28... f5 {[%clk 0:00:10]} 29. Kc2
{[%clk 0:00:38.6]} 29... Kf7 {[%clk 0:00:10.7]} 30. a4 {[%clk 0:00:39.3]} 30...
h6 {[%clk 0:00:12.1]} 31. g4 {[%clk 0:00:38.4]} 31... fxg4 {[%clk 0:00:10.6]}
32. Nxg4 {[%clk 0:00:40.3]} 32... h5 {[%clk 0:00:09.2]} 33. Ne3 {[%clk
0:00:35.4]} 33... Kf6 {[%clk 0:00:09.8]} 34. h4 {[%clk 0:00:36.1]} 34... Rf8
{[%clk 0:00:09.7]} 35. b4 {[%clk 0:00:30.6]} 35... Ke7 {[%clk 0:00:11.1]} 36. f5
{[%clk 0:00:30.1]} 36... gxf5 {[%clk 0:00:11.4]} 37. Ndxf5+ {[%clk 0:00:31]}
37... Ke6 {[%clk 0:00:09.7]} 38. Ng7+ {[%clk 0:00:18.7]} 38... Ke5 {[%clk
0:00:07.5]} 39. Nxh5 {[%clk 0:00:19.7]} 39... Rf2+ {[%clk 0:00:07.5]} 40. Kb3
{[%clk 0:00:20.2]} 40... Re2 {[%clk 0:00:03.8]} 41. Nc4+ {[%clk 0:00:21.2]} 1-0

[Event "*** Titled Tuesday Blitz"]
[Site "Chess.com"]
[Date "2019.03.05"]
[Round "5"]
[White "Swarnapuri"]
[Black "Durarbayli"]
[Result "0-1"]
[WhiteElo "2702"]
[BlackElo "2780"]
[TimeControl "180+2"]
[EndTime "14:13:04 PST"]
[Termination "Durarbayli won by resignation"]

1. d4 {[%clk 0:03:01.9]} 1... Nf6 {[%clk 0:02:59.9]} 2. Bf4 {[%clk 0:03:03.4]}
2... e6 {[%clk 0:02:57.9]} 3. e3 {[%clk 0:03:04.9]} 3... c5 {[%clk 0:02:59.1]}
4. Nf3 {[%clk 0:03:06.2]} 4... Qb6 {[%clk 0:02:59.5]} 5. Nc3 {[%clk 0:03:07.4]}
5... Qxb2 {[%clk 0:02:56.1]} 6. Nb5 {[%clk 0:03:08.3]} 6... Nd5 {[%clk
0:02:56.8]} 7. a3 {[%clk 0:03:05.9]} 7... a6 {[%clk 0:02:47.7]} 8. Rb1 {[%clk
0:02:57.2]} 8... Qa2 {[%clk 0:02:48.9]} 9. Ra1 {[%clk 0:02:58.6]} 9... Qb2
{[%clk 0:02:50.2]} 10. Rb1 {[%clk 0:02:41.2]} 10... Qa2 {[%clk 0:02:51.3]} 11.
Qc1 {[%clk 0:02:37.3]} 11... axb5 {[%clk 0:02:50.9]} 12. Ra1 {[%clk 0:02:38.4]}
12... Qxa1 {[%clk 0:02:48.3]} 13. Qxa1 {[%clk 0:02:40.3]} 13... c4 {[%clk
0:01:46.7]} 14. Bxb8 {[%clk 0:02:38.9]} 14... Bxa3 {[%clk 0:01:25.8]} 15. Kd1
{[%clk 0:02:26.3]} 15... Ra6 {[%clk 0:00:55.2]} 16. e4 {[%clk 0:02:26.8]} 16...
Bb4 {[%clk 0:00:45.7]} 17. Qb2 {[%clk 0:02:10.7]} 17... Ra2 {[%clk 0:00:41.4]}
18. Qc1 {[%clk 0:01:45.4]} 18... Nc3+ {[%clk 0:00:40.9]} 19. Kd2 {[%clk
0:01:44.9]} 19... Nxe4+ {[%clk 0:00:21.2]} 20. Ke2 {[%clk 0:01:46.3]} 20... d6
{[%clk 0:00:19.5]} 21. Ke3 {[%clk 0:01:33.3]} 21... f5 {[%clk 0:00:20.2]} 22.
Qb1 {[%clk 0:01:24]} 22... Ra4 {[%clk 0:00:21]} 23. Bd3 {[%clk 0:01:25.7]} 23...
cxd3 {[%clk 0:00:21.2]} 24. cxd3 {[%clk 0:01:27.2]} 24... Nc3 {[%clk 0:00:22.8]}
25. Qb3 {[%clk 0:01:25.5]} 25... Bd7 {[%clk 0:00:23.6]} 26. Rc1 {[%clk
0:01:18.5]} 26... Nd5+ {[%clk 0:00:23.3]} 27. Ke2 {[%clk 0:01:19.8]} 27... Ke7
{[%clk 0:00:24.8]} 28. Bc7 {[%clk 0:01:12.8]} 28... Rc8 {[%clk 0:00:20.5]} 29.
Bxd6+ {[%clk 0:01:13.3]} 29... Kxd6 {[%clk 0:00:22]} 30. Rxc8 {[%clk 0:01:12.2]}
30... Bxc8 {[%clk 0:00:23.9]} 31. Ne5 {[%clk 0:01:12.7]} 31... Bd7 {[%clk
0:00:21.6]} 32. g3 {[%clk 0:01:11.4]} 32... g5 {[%clk 0:00:21.9]} 33. Kf1 {[%clk
0:01:11.8]} 33... Ra1+ {[%clk 0:00:19.8]} 34. Kg2 {[%clk 0:01:12.5]} 34... Bc6
{[%clk 0:00:21.3]} 35. f3 {[%clk 0:01:10.9]} 35... Rc1 {[%clk 0:00:18.9]} 36.
Kh3 {[%clk 0:01:08.7]} 36... Ke7 {[%clk 0:00:16]} 37. Qa2 {[%clk 0:01:06.3]}
37... h5 {[%clk 0:00:16.3]} 38. Qa8 {[%clk 0:01:05.2]} 38... g4+ {[%clk
0:00:17.5]} 39. fxg4 {[%clk 0:01:05.8]} 39... hxg4+ {[%clk 0:00:19.4]} 40. Kh4
{[%clk 0:01:07]} 40... Rc2 {[%clk 0:00:18.4]} 41. Kg5 {[%clk 0:00:55.4]} 41...
Rxh2 {[%clk 0:00:15.9]} 42. Ng6+ {[%clk 0:00:56.3]} 42... Kd7 {[%clk 0:00:16.7]}
43. Ne5+ {[%clk 0:00:56.8]} 43... Kc7 {[%clk 0:00:18.1]} 44. Nf7 {[%clk
0:00:53.5]} 44... Be7+ {[%clk 0:00:18.6]} 45. Kg6 {[%clk 0:00:54.4]} 45... f4
{[%clk 0:00:19.4]} 46. Qa5+ {[%clk 0:00:55]} 46... Kc8 {[%clk 0:00:18.7]} 47.
Qa8+ {[%clk 0:00:54.5]} 47... Kc7 {[%clk 0:00:20.1]} 48. Qa5+ {[%clk 0:00:55.7]}
48... Kb8 {[%clk 0:00:21.6]} 49. gxf4 {[%clk 0:00:47.8]} 49... Nxf4+ {[%clk
0:00:22.7]} 50. Kg7 {[%clk 0:00:49.4]} 50... Nd5 {[%clk 0:00:24.6]} 51. Ne5
{[%clk 0:00:49.4]} 51... g3 {[%clk 0:00:25]} 52. Nxc6+ {[%clk 0:00:46.8]} 52...
bxc6 {[%clk 0:00:26.2]} 53. Qa6 {[%clk 0:00:48.7]} 53... g2 {[%clk 0:00:26.1]}
0-1